{"text_format":"1","workbook":"xlsx","n_sheets":2,"sheets":["Fiche_Client","Statistique"],"not_rendered":{"charts":0,"images":0,"macros":1,"external_links":0,"defined_names":2,"comments":0,"pivot_tables":0},"unopened":[],"bounds":{"document_bytes":16777216,"sheet_cells":100000,"rows_first":2000,"rows_last":500,"rows_between":2000,"halvings":0,"cell_chars":16384,"cell_head_chars":4096},"cells_cut":0,"cells_raw":0,"read":"whole","date_system":"1900"}

{"sheet":"Fiche_Client","index":0,"n_rows":16,"n_cols":13,"rows_kept":16,"cut":false,"hidden":false,"merged":[]}
[]
[null,"C_Id","Titre","Nat","Chb","Nom","Prénom","Naissance","Adresse","Pays","CNI","Société","Date Arrivée"]
[null,{"$f":"IF(E3<>\"\",ROW()-2,\"\")","v":1},"M","MA",205,"BELBACHIR","SAMIR","1982-04-09","OUJDA","MAROC","F510044",null,"2019-05-01"]
[null,{"$f":"IF(E4<>\"\",ROW()-2,\"\")","v":2},"Mme","MA",205,"JEAN ","PIERRE","2012-07-09","PARIS","France","666025HT",null,"2019-05-01"]
[null,{"$f":"IF(E5<>\"\",ROW()-2,\"\")","v":3},"M","DZ",301,"TAOUFIK","ELMORABIT","1962-05-03","ORAN","ALGERIE","246321HB",null,"2019-05-02"]
[null,{"$f":"IF(E6<>\"\",ROW()-2,\"\")","v":4},"M","US",210,"HOLCOMB","PETER","1975-08-06","NEW YORK","USA","BD6387501",null,"2019-05-02"]
[]
[]
[]
[]
[]
[]
[]
[null,null,null,null,null,null,"le: 01/05/2019 il y a une seul chambre (205,205) = 1 dans le statistique /résulltat soit dans l'onglet statistique Cellule (D3) 1/05/2019"]
[]
[null,null,null,null,null,null,"le: 02/05/2019 il y a deux chambrex (301,210) = 2 dans le statistique /résulltat soit dans l'onglet statistique Cellule (D4) 2/05/2019"]

{"sheet":"Statistique","index":1,"n_rows":34,"n_cols":24,"rows_kept":34,"cut":false,"hidden":false,"merged":[]}
[6,"2019-05-01",2]
[null,"Date",null,"Nb\nChb","Nb \nClients","US","ES","FR","BE","IT","DE","NL","POR","UK","DK","NOR","POL","RU","MA","SU","TU","DZ","TN","AF"]
[null,{"$f":"B1","v":"2019-05-01"},null,null,{"$f":"SUM(F3:X3)","v":2},{"$f":"COUNTIFS(Tableau1[Date Arrivée],Statistique!$B3,Tableau1[Nat],Statistique!F$2)","v":0},{"$f":"COUNTIFS(Tableau1[Date Arrivée],Statistique!$B3,Tableau1[Nat],Statistique!G$2)","v":0},{"$f":"COUNTIFS(Tableau1[Date Arrivée],Statistique!$B3,Tableau1[Nat],Statistique!H$2)","v":0},{"$f":"COUNTIFS(Tableau1[Date Arrivée],Statistique!$B3,Tableau1[Nat],Statistique!I$2)","v":0},{"$f":"COUNTIFS(Tableau1[Date Arrivée],Statistique!$B3,Tableau1[Nat],Statistique!J$2)","v":0},{"$f":"COUNTIFS(Tableau1[Date Arrivée],Statistique!$B3,Tableau1[Nat],Statistique!K$2)","v":0},{"$f":"COUNTIFS(Tableau1[Date Arrivée],Statistique!$B3,Tableau1[Nat],Statistique!L$2)","v":0},{"$f":"COUNTIFS(Tableau1[Date Arrivée],Statistique!$B3,Tableau1[Nat],Statistique!M$2)","v":0},{"$f":"COUNTIFS(Tableau1[Date Arrivée],Statistique!$B3,Tableau1[Nat],Statistique!N$2)","v":0},{"$f":"COUNTIFS(Tableau1[Date Arrivée],Statistique!$B3,Tableau1[Nat],Statistique!O$2)","v":0},{"$f":"COUNTIFS(Tableau1[Date Arrivée],Statistique!$B3,Tableau1[Nat],Statistique!P$2)","v":0},{"$f":"COUNTIFS(Tableau1[Date Arrivée],Statistique!$B3,Tableau1[Nat],Statistique!Q$2)","v":0},{"$f":"COUNTIFS(Tableau1[Date Arrivée],Statistique!$B3,Tableau1[Nat],Statistique!R$2)","v":0},{"$f":"COUNTIFS(Tableau1[Date Arrivée],Statistique!$B3,Tableau1[Nat],Statistique!S$2)","v":2},{"$f":"COUNTIFS(Tableau1[Date Arrivée],Statistique!$B3,Tableau1[Nat],Statistique!T$2)","v":0},{"$f":"COUNTIFS(Tableau1[Date Arrivée],Statistique!$B3,Tableau1[Nat],Statistique!U$2)","v":0},{"$f":"COUNTIFS(Tableau1[Date Arrivée],Statistique!$B3,Tableau1[Nat],Statistique!V$2)","v":0},{"$f":"COUNTIFS(Tableau1[Date Arrivée],Statistique!$B3,Tableau1[Nat],Statistique!W$2)","v":0},{"$f":"COUNTIFS(Tableau1[Date Arrivée],Statistique!$B3,Tableau1[Nat],Statistique!X$2)","v":0}]
[null,{"$f":"B3+1","v":"2019-05-02"},null,null,{"$f":"SUM(F4:X4)","v":2},{"$f":"COUNTIFS(Tableau1[Date Arrivée],Statistique!$B4,Tableau1[Nat],Statistique!F$2)","v":1},{"$f":"COUNTIFS(Tableau1[Date Arrivée],Statistique!$B4,Tableau1[Nat],Statistique!G$2)","v":0},{"$f":"COUNTIFS(Tableau1[Date Arrivée],Statistique!$B4,Tableau1[Nat],Statistique!H$2)","v":0},{"$f":"COUNTIFS(Tableau1[Date Arrivée],Statistique!$B4,Tableau1[Nat],Statistique!I$2)","v":0},{"$f":"COUNTIFS(Tableau1[Date Arrivée],Statistique!$B4,Tableau1[Nat],Statistique!J$2)","v":0},{"$f":"COUNTIFS(Tableau1[Date Arrivée],Statistique!$B4,Tableau1[Nat],Statistique!K$2)","v":0},{"$f":"COUNTIFS(Tableau1[Date Arrivée],Statistique!$B4,Tableau1[Nat],Statistique!L$2)","v":0},{"$f":"COUNTIFS(Tableau1[Date Arrivée],Statistique!$B4,Tableau1[Nat],Statistique!M$2)","v":0},{"$f":"COUNTIFS(Tableau1[Date Arrivée],Statistique!$B4,Tableau1[Nat],Statistique!N$2)","v":0},{"$f":"COUNTIFS(Tableau1[Date Arrivée],Statistique!$B4,Tableau1[Nat],Statistique!O$2)","v":0},{"$f":"COUNTIFS(Tableau1[Date Arrivée],Statistique!$B4,Tableau1[Nat],Statistique!P$2)","v":0},{"$f":"COUNTIFS(Tableau1[Date Arrivée],Statistique!$B4,Tableau1[Nat],Statistique!Q$2)","v":0},{"$f":"COUNTIFS(Tableau1[Date Arrivée],Statistique!$B4,Tableau1[Nat],Statistique!R$2)","v":0},{"$f":"COUNTIFS(Tableau1[Date Arrivée],Statistique!$B4,Tableau1[Nat],Statistique!S$2)","v":0},{"$f":"COUNTIFS(Tableau1[Date Arrivée],Statistique!$B4,Tableau1[Nat],Statistique!T$2)","v":0},{"$f":"COUNTIFS(Tableau1[Date Arrivée],Statistique!$B4,Tableau1[Nat],Statistique!U$2)","v":0},{"$f":"COUNTIFS(Tableau1[Date Arrivée],Statistique!$B4,Tableau1[Nat],Statistique!V$2)","v":1},{"$f":"COUNTIFS(Tableau1[Date Arrivée],Statistique!$B4,Tableau1[Nat],Statistique!W$2)","v":0},{"$f":"COUNTIFS(Tableau1[Date Arrivée],Statistique!$B4,Tableau1[Nat],Statistique!X$2)","v":0}]
[null,{"$f":"B4+1","v":"2019-05-03"},null,null,{"$f":"SUM(F5:X5)","v":0},{"$f":"COUNTIFS(Tableau1[Date Arrivée],Statistique!$B5,Tableau1[Nat],Statistique!F$2)","v":0},{"$f":"COUNTIFS(Tableau1[Date Arrivée],Statistique!$B5,Tableau1[Nat],Statistique!G$2)","v":0},{"$f":"COUNTIFS(Tableau1[Date Arrivée],Statistique!$B5,Tableau1[Nat],Statistique!H$2)","v":0},{"$f":"COUNTIFS(Tableau1[Date Arrivée],Statistique!$B5,Tableau1[Nat],Statistique!I$2)","v":0},{"$f":"COUNTIFS(Tableau1[Date Arrivée],Statistique!$B5,Tableau1[Nat],Statistique!J$2)","v":0},{"$f":"COUNTIFS(Tableau1[Date Arrivée],Statistique!$B5,Tableau1[Nat],Statistique!K$2)","v":0},{"$f":"COUNTIFS(Tableau1[Date Arrivée],Statistique!$B5,Tableau1[Nat],Statistique!L$2)","v":0},{"$f":"COUNTIFS(Tableau1[Date Arrivée],Statistique!$B5,Tableau1[Nat],Statistique!M$2)","v":0},{"$f":"COUNTIFS(Tableau1[Date Arrivée],Statistique!$B5,Tableau1[Nat],Statistique!N$2)","v":0},{"$f":"COUNTIFS(Tableau1[Date Arrivée],Statistique!$B5,Tableau1[Nat],Statistique!O$2)","v":0},{"$f":"COUNTIFS(Tableau1[Date Arrivée],Statistique!$B5,Tableau1[Nat],Statistique!P$2)","v":0},{"$f":"COUNTIFS(Tableau1[Date Arrivée],Statistique!$B5,Tableau1[Nat],Statistique!Q$2)","v":0},{"$f":"COUNTIFS(Tableau1[Date Arrivée],Statistique!$B5,Tableau1[Nat],Statistique!R$2)","v":0},{"$f":"COUNTIFS(Tableau1[Date Arrivée],Statistique!$B5,Tableau1[Nat],Statistique!S$2)","v":0},{"$f":"COUNTIFS(Tableau1[Date Arrivée],Statistique!$B5,Tableau1[Nat],Statistique!T$2)","v":0},{"$f":"COUNTIFS(Tableau1[Date Arrivée],Statistique!$B5,Tableau1[Nat],Statistique!U$2)","v":0},{"$f":"COUNTIFS(Tableau1[Date Arrivée],Statistique!$B5,Tableau1[Nat],Statistique!V$2)","v":0},{"$f":"COUNTIFS(Tableau1[Date Arrivée],Statistique!$B5,Tableau1[Nat],Statistique!W$2)","v":0},{"$f":"COUNTIFS(Tableau1[Date Arrivée],Statistique!$B5,Tableau1[Nat],Statistique!X$2)","v":0}]
[null,{"$f":"B5+1","v":"2019-05-04"},null,null,{"$f":"SUM(F6:X6)","v":0},{"$f":"COUNTIFS(Tableau1[Date Arrivée],Statistique!$B6,Tableau1[Nat],Statistique!F$2)","v":0},{"$f":"COUNTIFS(Tableau1[Date Arrivée],Statistique!$B6,Tableau1[Nat],Statistique!G$2)","v":0},{"$f":"COUNTIFS(Tableau1[Date Arrivée],Statistique!$B6,Tableau1[Nat],Statistique!H$2)","v":0},{"$f":"COUNTIFS(Tableau1[Date Arrivée],Statistique!$B6,Tableau1[Nat],Statistique!I$2)","v":0},{"$f":"COUNTIFS(Tableau1[Date Arrivée],Statistique!$B6,Tableau1[Nat],Statistique!J$2)","v":0},{"$f":"COUNTIFS(Tableau1[Date Arrivée],Statistique!$B6,Tableau1[Nat],Statistique!K$2)","v":0},{"$f":"COUNTIFS(Tableau1[Date Arrivée],Statistique!$B6,Tableau1[Nat],Statistique!L$2)","v":0},{"$f":"COUNTIFS(Tableau1[Date Arrivée],Statistique!$B6,Tableau1[Nat],Statistique!M$2)","v":0},{"$f":"COUNTIFS(Tableau1[Date Arrivée],Statistique!$B6,Tableau1[Nat],Statistique!N$2)","v":0},{"$f":"COUNTIFS(Tableau1[Date Arrivée],Statistique!$B6,Tableau1[Nat],Statistique!O$2)","v":0},{"$f":"COUNTIFS(Tableau1[Date Arrivée],Statistique!$B6,Tableau1[Nat],Statistique!P$2)","v":0},{"$f":"COUNTIFS(Tableau1[Date Arrivée],Statistique!$B6,Tableau1[Nat],Statistique!Q$2)","v":0},{"$f":"COUNTIFS(Tableau1[Date Arrivée],Statistique!$B6,Tableau1[Nat],Statistique!R$2)","v":0},{"$f":"COUNTIFS(Tableau1[Date Arrivée],Statistique!$B6,Tableau1[Nat],Statistique!S$2)","v":0},{"$f":"COUNTIFS(Tableau1[Date Arrivée],Statistique!$B6,Tableau1[Nat],Statistique!T$2)","v":0},{"$f":"COUNTIFS(Tableau1[Date Arrivée],Statistique!$B6,Tableau1[Nat],Statistique!U$2)","v":0},{"$f":"COUNTIFS(Tableau1[Date Arrivée],Statistique!$B6,Tableau1[Nat],Statistique!V$2)","v":0},{"$f":"COUNTIFS(Tableau1[Date Arrivée],Statistique!$B6,Tableau1[Nat],Statistique!W$2)","v":0},{"$f":"COUNTIFS(Tableau1[Date Arrivée],Statistique!$B6,Tableau1[Nat],Statistique!X$2)","v":0}]
[null,"2019-05-05",null,null,{"$f":"SUM(F7:X7)","v":0},{"$f":"COUNTIFS(Tableau1[Date Arrivée],Statistique!$B7,Tableau1[Nat],Statistique!F$2)","v":0},{"$f":"COUNTIFS(Tableau1[Date Arrivée],Statistique!$B7,Tableau1[Nat],Statistique!G$2)","v":0},{"$f":"COUNTIFS(Tableau1[Date Arrivée],Statistique!$B7,Tableau1[Nat],Statistique!H$2)","v":0},{"$f":"COUNTIFS(Tableau1[Date Arrivée],Statistique!$B7,Tableau1[Nat],Statistique!I$2)","v":0},{"$f":"COUNTIFS(Tableau1[Date Arrivée],Statistique!$B7,Tableau1[Nat],Statistique!J$2)","v":0},{"$f":"COUNTIFS(Tableau1[Date Arrivée],Statistique!$B7,Tableau1[Nat],Statistique!K$2)","v":0},{"$f":"COUNTIFS(Tableau1[Date Arrivée],Statistique!$B7,Tableau1[Nat],Statistique!L$2)","v":0},{"$f":"COUNTIFS(Tableau1[Date Arrivée],Statistique!$B7,Tableau1[Nat],Statistique!M$2)","v":0},{"$f":"COUNTIFS(Tableau1[Date Arrivée],Statistique!$B7,Tableau1[Nat],Statistique!N$2)","v":0},{"$f":"COUNTIFS(Tableau1[Date Arrivée],Statistique!$B7,Tableau1[Nat],Statistique!O$2)","v":0},{"$f":"COUNTIFS(Tableau1[Date Arrivée],Statistique!$B7,Tableau1[Nat],Statistique!P$2)","v":0},{"$f":"COUNTIFS(Tableau1[Date Arrivée],Statistique!$B7,Tableau1[Nat],Statistique!Q$2)","v":0},{"$f":"COUNTIFS(Tableau1[Date Arrivée],Statistique!$B7,Tableau1[Nat],Statistique!R$2)","v":0},{"$f":"COUNTIFS(Tableau1[Date Arrivée],Statistique!$B7,Tableau1[Nat],Statistique!S$2)","v":0},{"$f":"COUNTIFS(Tableau1[Date Arrivée],Statistique!$B7,Tableau1[Nat],Statistique!T$2)","v":0},{"$f":"COUNTIFS(Tableau1[Date Arrivée],Statistique!$B7,Tableau1[Nat],Statistique!U$2)","v":0},{"$f":"COUNTIFS(Tableau1[Date Arrivée],Statistique!$B7,Tableau1[Nat],Statistique!V$2)","v":0},{"$f":"COUNTIFS(Tableau1[Date Arrivée],Statistique!$B7,Tableau1[Nat],Statistique!W$2)","v":0},{"$f":"COUNTIFS(Tableau1[Date Arrivée],Statistique!$B7,Tableau1[Nat],Statistique!X$2)","v":0}]
[null,"2019-05-06",null,null,{"$f":"SUM(F8:X8)","v":0},{"$f":"COUNTIFS(Tableau1[Date Arrivée],Statistique!$B8,Tableau1[Nat],Statistique!F$2)","v":0},{"$f":"COUNTIFS(Tableau1[Date Arrivée],Statistique!$B8,Tableau1[Nat],Statistique!G$2)","v":0},{"$f":"COUNTIFS(Tableau1[Date Arrivée],Statistique!$B8,Tableau1[Nat],Statistique!H$2)","v":0},{"$f":"COUNTIFS(Tableau1[Date Arrivée],Statistique!$B8,Tableau1[Nat],Statistique!I$2)","v":0},{"$f":"COUNTIFS(Tableau1[Date Arrivée],Statistique!$B8,Tableau1[Nat],Statistique!J$2)","v":0},{"$f":"COUNTIFS(Tableau1[Date Arrivée],Statistique!$B8,Tableau1[Nat],Statistique!K$2)","v":0},{"$f":"COUNTIFS(Tableau1[Date Arrivée],Statistique!$B8,Tableau1[Nat],Statistique!L$2)","v":0},{"$f":"COUNTIFS(Tableau1[Date Arrivée],Statistique!$B8,Tableau1[Nat],Statistique!M$2)","v":0},{"$f":"COUNTIFS(Tableau1[Date Arrivée],Statistique!$B8,Tableau1[Nat],Statistique!N$2)","v":0},{"$f":"COUNTIFS(Tableau1[Date Arrivée],Statistique!$B8,Tableau1[Nat],Statistique!O$2)","v":0},{"$f":"COUNTIFS(Tableau1[Date Arrivée],Statistique!$B8,Tableau1[Nat],Statistique!P$2)","v":0},{"$f":"COUNTIFS(Tableau1[Date Arrivée],Statistique!$B8,Tableau1[Nat],Statistique!Q$2)","v":0},{"$f":"COUNTIFS(Tableau1[Date Arrivée],Statistique!$B8,Tableau1[Nat],Statistique!R$2)","v":0},{"$f":"COUNTIFS(Tableau1[Date Arrivée],Statistique!$B8,Tableau1[Nat],Statistique!S$2)","v":0},{"$f":"COUNTIFS(Tableau1[Date Arrivée],Statistique!$B8,Tableau1[Nat],Statistique!T$2)","v":0},{"$f":"COUNTIFS(Tableau1[Date Arrivée],Statistique!$B8,Tableau1[Nat],Statistique!U$2)","v":0},{"$f":"COUNTIFS(Tableau1[Date Arrivée],Statistique!$B8,Tableau1[Nat],Statistique!V$2)","v":0},{"$f":"COUNTIFS(Tableau1[Date Arrivée],Statistique!$B8,Tableau1[Nat],Statistique!W$2)","v":0},{"$f":"COUNTIFS(Tableau1[Date Arrivée],Statistique!$B8,Tableau1[Nat],Statistique!X$2)","v":0}]
[null,"2019-05-07",null,null,{"$f":"SUM(F9:X9)","v":0},{"$f":"COUNTIFS(Tableau1[Date Arrivée],Statistique!$B9,Tableau1[Nat],Statistique!F$2)","v":0},{"$f":"COUNTIFS(Tableau1[Date Arrivée],Statistique!$B9,Tableau1[Nat],Statistique!G$2)","v":0},{"$f":"COUNTIFS(Tableau1[Date Arrivée],Statistique!$B9,Tableau1[Nat],Statistique!H$2)","v":0},{"$f":"COUNTIFS(Tableau1[Date Arrivée],Statistique!$B9,Tableau1[Nat],Statistique!I$2)","v":0},{"$f":"COUNTIFS(Tableau1[Date Arrivée],Statistique!$B9,Tableau1[Nat],Statistique!J$2)","v":0},{"$f":"COUNTIFS(Tableau1[Date Arrivée],Statistique!$B9,Tableau1[Nat],Statistique!K$2)","v":0},{"$f":"COUNTIFS(Tableau1[Date Arrivée],Statistique!$B9,Tableau1[Nat],Statistique!L$2)","v":0},{"$f":"COUNTIFS(Tableau1[Date Arrivée],Statistique!$B9,Tableau1[Nat],Statistique!M$2)","v":0},{"$f":"COUNTIFS(Tableau1[Date Arrivée],Statistique!$B9,Tableau1[Nat],Statistique!N$2)","v":0},{"$f":"COUNTIFS(Tableau1[Date Arrivée],Statistique!$B9,Tableau1[Nat],Statistique!O$2)","v":0},{"$f":"COUNTIFS(Tableau1[Date Arrivée],Statistique!$B9,Tableau1[Nat],Statistique!P$2)","v":0},{"$f":"COUNTIFS(Tableau1[Date Arrivée],Statistique!$B9,Tableau1[Nat],Statistique!Q$2)","v":0},{"$f":"COUNTIFS(Tableau1[Date Arrivée],Statistique!$B9,Tableau1[Nat],Statistique!R$2)","v":0},{"$f":"COUNTIFS(Tableau1[Date Arrivée],Statistique!$B9,Tableau1[Nat],Statistique!S$2)","v":0},{"$f":"COUNTIFS(Tableau1[Date Arrivée],Statistique!$B9,Tableau1[Nat],Statistique!T$2)","v":0},{"$f":"COUNTIFS(Tableau1[Date Arrivée],Statistique!$B9,Tableau1[Nat],Statistique!U$2)","v":0},{"$f":"COUNTIFS(Tableau1[Date Arrivée],Statistique!$B9,Tableau1[Nat],Statistique!V$2)","v":0},{"$f":"COUNTIFS(Tableau1[Date Arrivée],Statistique!$B9,Tableau1[Nat],Statistique!W$2)","v":0},{"$f":"COUNTIFS(Tableau1[Date Arrivée],Statistique!$B9,Tableau1[Nat],Statistique!X$2)","v":0}]
[null,"2019-05-08",null,null,{"$f":"SUM(F10:X10)","v":0},{"$f":"COUNTIFS(Tableau1[Date Arrivée],Statistique!$B10,Tableau1[Nat],Statistique!F$2)","v":0},{"$f":"COUNTIFS(Tableau1[Date Arrivée],Statistique!$B10,Tableau1[Nat],Statistique!G$2)","v":0},{"$f":"COUNTIFS(Tableau1[Date Arrivée],Statistique!$B10,Tableau1[Nat],Statistique!H$2)","v":0},{"$f":"COUNTIFS(Tableau1[Date Arrivée],Statistique!$B10,Tableau1[Nat],Statistique!I$2)","v":0},{"$f":"COUNTIFS(Tableau1[Date Arrivée],Statistique!$B10,Tableau1[Nat],Statistique!J$2)","v":0},{"$f":"COUNTIFS(Tableau1[Date Arrivée],Statistique!$B10,Tableau1[Nat],Statistique!K$2)","v":0},{"$f":"COUNTIFS(Tableau1[Date Arrivée],Statistique!$B10,Tableau1[Nat],Statistique!L$2)","v":0},{"$f":"COUNTIFS(Tableau1[Date Arrivée],Statistique!$B10,Tableau1[Nat],Statistique!M$2)","v":0},{"$f":"COUNTIFS(Tableau1[Date Arrivée],Statistique!$B10,Tableau1[Nat],Statistique!N$2)","v":0},{"$f":"COUNTIFS(Tableau1[Date Arrivée],Statistique!$B10,Tableau1[Nat],Statistique!O$2)","v":0},{"$f":"COUNTIFS(Tableau1[Date Arrivée],Statistique!$B10,Tableau1[Nat],Statistique!P$2)","v":0},{"$f":"COUNTIFS(Tableau1[Date Arrivée],Statistique!$B10,Tableau1[Nat],Statistique!Q$2)","v":0},{"$f":"COUNTIFS(Tableau1[Date Arrivée],Statistique!$B10,Tableau1[Nat],Statistique!R$2)","v":0},{"$f":"COUNTIFS(Tableau1[Date Arrivée],Statistique!$B10,Tableau1[Nat],Statistique!S$2)","v":0},{"$f":"COUNTIFS(Tableau1[Date Arrivée],Statistique!$B10,Tableau1[Nat],Statistique!T$2)","v":0},{"$f":"COUNTIFS(Tableau1[Date Arrivée],Statistique!$B10,Tableau1[Nat],Statistique!U$2)","v":0},{"$f":"COUNTIFS(Tableau1[Date Arrivée],Statistique!$B10,Tableau1[Nat],Statistique!V$2)","v":0},{"$f":"COUNTIFS(Tableau1[Date Arrivée],Statistique!$B10,Tableau1[Nat],Statistique!W$2)","v":0},{"$f":"COUNTIFS(Tableau1[Date Arrivée],Statistique!$B10,Tableau1[Nat],Statistique!X$2)","v":0}]
[null,"2019-05-09",null,null,{"$f":"SUM(F11:X11)","v":0},{"$f":"COUNTIFS(Tableau1[Date Arrivée],Statistique!$B11,Tableau1[Nat],Statistique!F$2)","v":0},{"$f":"COUNTIFS(Tableau1[Date Arrivée],Statistique!$B11,Tableau1[Nat],Statistique!G$2)","v":0},{"$f":"COUNTIFS(Tableau1[Date Arrivée],Statistique!$B11,Tableau1[Nat],Statistique!H$2)","v":0},{"$f":"COUNTIFS(Tableau1[Date Arrivée],Statistique!$B11,Tableau1[Nat],Statistique!I$2)","v":0},{"$f":"COUNTIFS(Tableau1[Date Arrivée],Statistique!$B11,Tableau1[Nat],Statistique!J$2)","v":0},{"$f":"COUNTIFS(Tableau1[Date Arrivée],Statistique!$B11,Tableau1[Nat],Statistique!K$2)","v":0},{"$f":"COUNTIFS(Tableau1[Date Arrivée],Statistique!$B11,Tableau1[Nat],Statistique!L$2)","v":0},{"$f":"COUNTIFS(Tableau1[Date Arrivée],Statistique!$B11,Tableau1[Nat],Statistique!M$2)","v":0},{"$f":"COUNTIFS(Tableau1[Date Arrivée],Statistique!$B11,Tableau1[Nat],Statistique!N$2)","v":0},{"$f":"COUNTIFS(Tableau1[Date Arrivée],Statistique!$B11,Tableau1[Nat],Statistique!O$2)","v":0},{"$f":"COUNTIFS(Tableau1[Date Arrivée],Statistique!$B11,Tableau1[Nat],Statistique!P$2)","v":0},{"$f":"COUNTIFS(Tableau1[Date Arrivée],Statistique!$B11,Tableau1[Nat],Statistique!Q$2)","v":0},{"$f":"COUNTIFS(Tableau1[Date Arrivée],Statistique!$B11,Tableau1[Nat],Statistique!R$2)","v":0},{"$f":"COUNTIFS(Tableau1[Date Arrivée],Statistique!$B11,Tableau1[Nat],Statistique!S$2)","v":0},{"$f":"COUNTIFS(Tableau1[Date Arrivée],Statistique!$B11,Tableau1[Nat],Statistique!T$2)","v":0},{"$f":"COUNTIFS(Tableau1[Date Arrivée],Statistique!$B11,Tableau1[Nat],Statistique!U$2)","v":0},{"$f":"COUNTIFS(Tableau1[Date Arrivée],Statistique!$B11,Tableau1[Nat],Statistique!V$2)","v":0},{"$f":"COUNTIFS(Tableau1[Date Arrivée],Statistique!$B11,Tableau1[Nat],Statistique!W$2)","v":0},{"$f":"COUNTIFS(Tableau1[Date Arrivée],Statistique!$B11,Tableau1[Nat],Statistique!X$2)","v":0}]
[null,"2019-05-10",null,null,{"$f":"SUM(F12:X12)","v":0},{"$f":"COUNTIFS(Tableau1[Date Arrivée],Statistique!$B12,Tableau1[Nat],Statistique!F$2)","v":0},{"$f":"COUNTIFS(Tableau1[Date Arrivée],Statistique!$B12,Tableau1[Nat],Statistique!G$2)","v":0},{"$f":"COUNTIFS(Tableau1[Date Arrivée],Statistique!$B12,Tableau1[Nat],Statistique!H$2)","v":0},{"$f":"COUNTIFS(Tableau1[Date Arrivée],Statistique!$B12,Tableau1[Nat],Statistique!I$2)","v":0},{"$f":"COUNTIFS(Tableau1[Date Arrivée],Statistique!$B12,Tableau1[Nat],Statistique!J$2)","v":0},{"$f":"COUNTIFS(Tableau1[Date Arrivée],Statistique!$B12,Tableau1[Nat],Statistique!K$2)","v":0},{"$f":"COUNTIFS(Tableau1[Date Arrivée],Statistique!$B12,Tableau1[Nat],Statistique!L$2)","v":0},{"$f":"COUNTIFS(Tableau1[Date Arrivée],Statistique!$B12,Tableau1[Nat],Statistique!M$2)","v":0},{"$f":"COUNTIFS(Tableau1[Date Arrivée],Statistique!$B12,Tableau1[Nat],Statistique!N$2)","v":0},{"$f":"COUNTIFS(Tableau1[Date Arrivée],Statistique!$B12,Tableau1[Nat],Statistique!O$2)","v":0},{"$f":"COUNTIFS(Tableau1[Date Arrivée],Statistique!$B12,Tableau1[Nat],Statistique!P$2)","v":0},{"$f":"COUNTIFS(Tableau1[Date Arrivée],Statistique!$B12,Tableau1[Nat],Statistique!Q$2)","v":0},{"$f":"COUNTIFS(Tableau1[Date Arrivée],Statistique!$B12,Tableau1[Nat],Statistique!R$2)","v":0},{"$f":"COUNTIFS(Tableau1[Date Arrivée],Statistique!$B12,Tableau1[Nat],Statistique!S$2)","v":0},{"$f":"COUNTIFS(Tableau1[Date Arrivée],Statistique!$B12,Tableau1[Nat],Statistique!T$2)","v":0},{"$f":"COUNTIFS(Tableau1[Date Arrivée],Statistique!$B12,Tableau1[Nat],Statistique!U$2)","v":0},{"$f":"COUNTIFS(Tableau1[Date Arrivée],Statistique!$B12,Tableau1[Nat],Statistique!V$2)","v":0},{"$f":"COUNTIFS(Tableau1[Date Arrivée],Statistique!$B12,Tableau1[Nat],Statistique!W$2)","v":0},{"$f":"COUNTIFS(Tableau1[Date Arrivée],Statistique!$B12,Tableau1[Nat],Statistique!X$2)","v":0}]
[null,"2019-05-11",null,null,{"$f":"SUM(F13:X13)","v":0},{"$f":"COUNTIFS(Tableau1[Date Arrivée],Statistique!$B13,Tableau1[Nat],Statistique!F$2)","v":0},{"$f":"COUNTIFS(Tableau1[Date Arrivée],Statistique!$B13,Tableau1[Nat],Statistique!G$2)","v":0},{"$f":"COUNTIFS(Tableau1[Date Arrivée],Statistique!$B13,Tableau1[Nat],Statistique!H$2)","v":0},{"$f":"COUNTIFS(Tableau1[Date Arrivée],Statistique!$B13,Tableau1[Nat],Statistique!I$2)","v":0},{"$f":"COUNTIFS(Tableau1[Date Arrivée],Statistique!$B13,Tableau1[Nat],Statistique!J$2)","v":0},{"$f":"COUNTIFS(Tableau1[Date Arrivée],Statistique!$B13,Tableau1[Nat],Statistique!K$2)","v":0},{"$f":"COUNTIFS(Tableau1[Date Arrivée],Statistique!$B13,Tableau1[Nat],Statistique!L$2)","v":0},{"$f":"COUNTIFS(Tableau1[Date Arrivée],Statistique!$B13,Tableau1[Nat],Statistique!M$2)","v":0},{"$f":"COUNTIFS(Tableau1[Date Arrivée],Statistique!$B13,Tableau1[Nat],Statistique!N$2)","v":0},{"$f":"COUNTIFS(Tableau1[Date Arrivée],Statistique!$B13,Tableau1[Nat],Statistique!O$2)","v":0},{"$f":"COUNTIFS(Tableau1[Date Arrivée],Statistique!$B13,Tableau1[Nat],Statistique!P$2)","v":0},{"$f":"COUNTIFS(Tableau1[Date Arrivée],Statistique!$B13,Tableau1[Nat],Statistique!Q$2)","v":0},{"$f":"COUNTIFS(Tableau1[Date Arrivée],Statistique!$B13,Tableau1[Nat],Statistique!R$2)","v":0},{"$f":"COUNTIFS(Tableau1[Date Arrivée],Statistique!$B13,Tableau1[Nat],Statistique!S$2)","v":0},{"$f":"COUNTIFS(Tableau1[Date Arrivée],Statistique!$B13,Tableau1[Nat],Statistique!T$2)","v":0},{"$f":"COUNTIFS(Tableau1[Date Arrivée],Statistique!$B13,Tableau1[Nat],Statistique!U$2)","v":0},{"$f":"COUNTIFS(Tableau1[Date Arrivée],Statistique!$B13,Tableau1[Nat],Statistique!V$2)","v":0},{"$f":"COUNTIFS(Tableau1[Date Arrivée],Statistique!$B13,Tableau1[Nat],Statistique!W$2)","v":0},{"$f":"COUNTIFS(Tableau1[Date Arrivée],Statistique!$B13,Tableau1[Nat],Statistique!X$2)","v":0}]
[null,"2019-05-12",null,null,{"$f":"SUM(F14:X14)","v":0},{"$f":"COUNTIFS(Tableau1[Date Arrivée],Statistique!$B14,Tableau1[Nat],Statistique!F$2)","v":0},{"$f":"COUNTIFS(Tableau1[Date Arrivée],Statistique!$B14,Tableau1[Nat],Statistique!G$2)","v":0},{"$f":"COUNTIFS(Tableau1[Date Arrivée],Statistique!$B14,Tableau1[Nat],Statistique!H$2)","v":0},{"$f":"COUNTIFS(Tableau1[Date Arrivée],Statistique!$B14,Tableau1[Nat],Statistique!I$2)","v":0},{"$f":"COUNTIFS(Tableau1[Date Arrivée],Statistique!$B14,Tableau1[Nat],Statistique!J$2)","v":0},{"$f":"COUNTIFS(Tableau1[Date Arrivée],Statistique!$B14,Tableau1[Nat],Statistique!K$2)","v":0},{"$f":"COUNTIFS(Tableau1[Date Arrivée],Statistique!$B14,Tableau1[Nat],Statistique!L$2)","v":0},{"$f":"COUNTIFS(Tableau1[Date Arrivée],Statistique!$B14,Tableau1[Nat],Statistique!M$2)","v":0},{"$f":"COUNTIFS(Tableau1[Date Arrivée],Statistique!$B14,Tableau1[Nat],Statistique!N$2)","v":0},{"$f":"COUNTIFS(Tableau1[Date Arrivée],Statistique!$B14,Tableau1[Nat],Statistique!O$2)","v":0},{"$f":"COUNTIFS(Tableau1[Date Arrivée],Statistique!$B14,Tableau1[Nat],Statistique!P$2)","v":0},{"$f":"COUNTIFS(Tableau1[Date Arrivée],Statistique!$B14,Tableau1[Nat],Statistique!Q$2)","v":0},{"$f":"COUNTIFS(Tableau1[Date Arrivée],Statistique!$B14,Tableau1[Nat],Statistique!R$2)","v":0},{"$f":"COUNTIFS(Tableau1[Date Arrivée],Statistique!$B14,Tableau1[Nat],Statistique!S$2)","v":0},{"$f":"COUNTIFS(Tableau1[Date Arrivée],Statistique!$B14,Tableau1[Nat],Statistique!T$2)","v":0},{"$f":"COUNTIFS(Tableau1[Date Arrivée],Statistique!$B14,Tableau1[Nat],Statistique!U$2)","v":0},{"$f":"COUNTIFS(Tableau1[Date Arrivée],Statistique!$B14,Tableau1[Nat],Statistique!V$2)","v":0},{"$f":"COUNTIFS(Tableau1[Date Arrivée],Statistique!$B14,Tableau1[Nat],Statistique!W$2)","v":0},{"$f":"COUNTIFS(Tableau1[Date Arrivée],Statistique!$B14,Tableau1[Nat],Statistique!X$2)","v":0}]
[null,"2019-05-13",null,null,{"$f":"SUM(F15:X15)","v":0},{"$f":"COUNTIFS(Tableau1[Date Arrivée],Statistique!$B15,Tableau1[Nat],Statistique!F$2)","v":0},{"$f":"COUNTIFS(Tableau1[Date Arrivée],Statistique!$B15,Tableau1[Nat],Statistique!G$2)","v":0},{"$f":"COUNTIFS(Tableau1[Date Arrivée],Statistique!$B15,Tableau1[Nat],Statistique!H$2)","v":0},{"$f":"COUNTIFS(Tableau1[Date Arrivée],Statistique!$B15,Tableau1[Nat],Statistique!I$2)","v":0},{"$f":"COUNTIFS(Tableau1[Date Arrivée],Statistique!$B15,Tableau1[Nat],Statistique!J$2)","v":0},{"$f":"COUNTIFS(Tableau1[Date Arrivée],Statistique!$B15,Tableau1[Nat],Statistique!K$2)","v":0},{"$f":"COUNTIFS(Tableau1[Date Arrivée],Statistique!$B15,Tableau1[Nat],Statistique!L$2)","v":0},{"$f":"COUNTIFS(Tableau1[Date Arrivée],Statistique!$B15,Tableau1[Nat],Statistique!M$2)","v":0},{"$f":"COUNTIFS(Tableau1[Date Arrivée],Statistique!$B15,Tableau1[Nat],Statistique!N$2)","v":0},{"$f":"COUNTIFS(Tableau1[Date Arrivée],Statistique!$B15,Tableau1[Nat],Statistique!O$2)","v":0},{"$f":"COUNTIFS(Tableau1[Date Arrivée],Statistique!$B15,Tableau1[Nat],Statistique!P$2)","v":0},{"$f":"COUNTIFS(Tableau1[Date Arrivée],Statistique!$B15,Tableau1[Nat],Statistique!Q$2)","v":0},{"$f":"COUNTIFS(Tableau1[Date Arrivée],Statistique!$B15,Tableau1[Nat],Statistique!R$2)","v":0},{"$f":"COUNTIFS(Tableau1[Date Arrivée],Statistique!$B15,Tableau1[Nat],Statistique!S$2)","v":0},{"$f":"COUNTIFS(Tableau1[Date Arrivée],Statistique!$B15,Tableau1[Nat],Statistique!T$2)","v":0},{"$f":"COUNTIFS(Tableau1[Date Arrivée],Statistique!$B15,Tableau1[Nat],Statistique!U$2)","v":0},{"$f":"COUNTIFS(Tableau1[Date Arrivée],Statistique!$B15,Tableau1[Nat],Statistique!V$2)","v":0},{"$f":"COUNTIFS(Tableau1[Date Arrivée],Statistique!$B15,Tableau1[Nat],Statistique!W$2)","v":0},{"$f":"COUNTIFS(Tableau1[Date Arrivée],Statistique!$B15,Tableau1[Nat],Statistique!X$2)","v":0}]
[null,"2019-05-14",null,null,{"$f":"SUM(F16:X16)","v":0},{"$f":"COUNTIFS(Tableau1[Date Arrivée],Statistique!$B16,Tableau1[Nat],Statistique!F$2)","v":0},{"$f":"COUNTIFS(Tableau1[Date Arrivée],Statistique!$B16,Tableau1[Nat],Statistique!G$2)","v":0},{"$f":"COUNTIFS(Tableau1[Date Arrivée],Statistique!$B16,Tableau1[Nat],Statistique!H$2)","v":0},{"$f":"COUNTIFS(Tableau1[Date Arrivée],Statistique!$B16,Tableau1[Nat],Statistique!I$2)","v":0},{"$f":"COUNTIFS(Tableau1[Date Arrivée],Statistique!$B16,Tableau1[Nat],Statistique!J$2)","v":0},{"$f":"COUNTIFS(Tableau1[Date Arrivée],Statistique!$B16,Tableau1[Nat],Statistique!K$2)","v":0},{"$f":"COUNTIFS(Tableau1[Date Arrivée],Statistique!$B16,Tableau1[Nat],Statistique!L$2)","v":0},{"$f":"COUNTIFS(Tableau1[Date Arrivée],Statistique!$B16,Tableau1[Nat],Statistique!M$2)","v":0},{"$f":"COUNTIFS(Tableau1[Date Arrivée],Statistique!$B16,Tableau1[Nat],Statistique!N$2)","v":0},{"$f":"COUNTIFS(Tableau1[Date Arrivée],Statistique!$B16,Tableau1[Nat],Statistique!O$2)","v":0},{"$f":"COUNTIFS(Tableau1[Date Arrivée],Statistique!$B16,Tableau1[Nat],Statistique!P$2)","v":0},{"$f":"COUNTIFS(Tableau1[Date Arrivée],Statistique!$B16,Tableau1[Nat],Statistique!Q$2)","v":0},{"$f":"COUNTIFS(Tableau1[Date Arrivée],Statistique!$B16,Tableau1[Nat],Statistique!R$2)","v":0},{"$f":"COUNTIFS(Tableau1[Date Arrivée],Statistique!$B16,Tableau1[Nat],Statistique!S$2)","v":0},{"$f":"COUNTIFS(Tableau1[Date Arrivée],Statistique!$B16,Tableau1[Nat],Statistique!T$2)","v":0},{"$f":"COUNTIFS(Tableau1[Date Arrivée],Statistique!$B16,Tableau1[Nat],Statistique!U$2)","v":0},{"$f":"COUNTIFS(Tableau1[Date Arrivée],Statistique!$B16,Tableau1[Nat],Statistique!V$2)","v":0},{"$f":"COUNTIFS(Tableau1[Date Arrivée],Statistique!$B16,Tableau1[Nat],Statistique!W$2)","v":0},{"$f":"COUNTIFS(Tableau1[Date Arrivée],Statistique!$B16,Tableau1[Nat],Statistique!X$2)","v":0}]
[null,"2019-05-15",null,null,{"$f":"SUM(F17:X17)","v":0},{"$f":"COUNTIFS(Tableau1[Date Arrivée],Statistique!$B17,Tableau1[Nat],Statistique!F$2)","v":0},{"$f":"COUNTIFS(Tableau1[Date Arrivée],Statistique!$B17,Tableau1[Nat],Statistique!G$2)","v":0},{"$f":"COUNTIFS(Tableau1[Date Arrivée],Statistique!$B17,Tableau1[Nat],Statistique!H$2)","v":0},{"$f":"COUNTIFS(Tableau1[Date Arrivée],Statistique!$B17,Tableau1[Nat],Statistique!I$2)","v":0},{"$f":"COUNTIFS(Tableau1[Date Arrivée],Statistique!$B17,Tableau1[Nat],Statistique!J$2)","v":0},{"$f":"COUNTIFS(Tableau1[Date Arrivée],Statistique!$B17,Tableau1[Nat],Statistique!K$2)","v":0},{"$f":"COUNTIFS(Tableau1[Date Arrivée],Statistique!$B17,Tableau1[Nat],Statistique!L$2)","v":0},{"$f":"COUNTIFS(Tableau1[Date Arrivée],Statistique!$B17,Tableau1[Nat],Statistique!M$2)","v":0},{"$f":"COUNTIFS(Tableau1[Date Arrivée],Statistique!$B17,Tableau1[Nat],Statistique!N$2)","v":0},{"$f":"COUNTIFS(Tableau1[Date Arrivée],Statistique!$B17,Tableau1[Nat],Statistique!O$2)","v":0},{"$f":"COUNTIFS(Tableau1[Date Arrivée],Statistique!$B17,Tableau1[Nat],Statistique!P$2)","v":0},{"$f":"COUNTIFS(Tableau1[Date Arrivée],Statistique!$B17,Tableau1[Nat],Statistique!Q$2)","v":0},{"$f":"COUNTIFS(Tableau1[Date Arrivée],Statistique!$B17,Tableau1[Nat],Statistique!R$2)","v":0},{"$f":"COUNTIFS(Tableau1[Date Arrivée],Statistique!$B17,Tableau1[Nat],Statistique!S$2)","v":0},{"$f":"COUNTIFS(Tableau1[Date Arrivée],Statistique!$B17,Tableau1[Nat],Statistique!T$2)","v":0},{"$f":"COUNTIFS(Tableau1[Date Arrivée],Statistique!$B17,Tableau1[Nat],Statistique!U$2)","v":0},{"$f":"COUNTIFS(Tableau1[Date Arrivée],Statistique!$B17,Tableau1[Nat],Statistique!V$2)","v":0},{"$f":"COUNTIFS(Tableau1[Date Arrivée],Statistique!$B17,Tableau1[Nat],Statistique!W$2)","v":0},{"$f":"COUNTIFS(Tableau1[Date Arrivée],Statistique!$B17,Tableau1[Nat],Statistique!X$2)","v":0}]
[null,"2019-05-16",null,null,{"$f":"SUM(F18:X18)","v":0},{"$f":"COUNTIFS(Tableau1[Date Arrivée],Statistique!$B18,Tableau1[Nat],Statistique!F$2)","v":0},{"$f":"COUNTIFS(Tableau1[Date Arrivée],Statistique!$B18,Tableau1[Nat],Statistique!G$2)","v":0},{"$f":"COUNTIFS(Tableau1[Date Arrivée],Statistique!$B18,Tableau1[Nat],Statistique!H$2)","v":0},{"$f":"COUNTIFS(Tableau1[Date Arrivée],Statistique!$B18,Tableau1[Nat],Statistique!I$2)","v":0},{"$f":"COUNTIFS(Tableau1[Date Arrivée],Statistique!$B18,Tableau1[Nat],Statistique!J$2)","v":0},{"$f":"COUNTIFS(Tableau1[Date Arrivée],Statistique!$B18,Tableau1[Nat],Statistique!K$2)","v":0},{"$f":"COUNTIFS(Tableau1[Date Arrivée],Statistique!$B18,Tableau1[Nat],Statistique!L$2)","v":0},{"$f":"COUNTIFS(Tableau1[Date Arrivée],Statistique!$B18,Tableau1[Nat],Statistique!M$2)","v":0},{"$f":"COUNTIFS(Tableau1[Date Arrivée],Statistique!$B18,Tableau1[Nat],Statistique!N$2)","v":0},{"$f":"COUNTIFS(Tableau1[Date Arrivée],Statistique!$B18,Tableau1[Nat],Statistique!O$2)","v":0},{"$f":"COUNTIFS(Tableau1[Date Arrivée],Statistique!$B18,Tableau1[Nat],Statistique!P$2)","v":0},{"$f":"COUNTIFS(Tableau1[Date Arrivée],Statistique!$B18,Tableau1[Nat],Statistique!Q$2)","v":0},{"$f":"COUNTIFS(Tableau1[Date Arrivée],Statistique!$B18,Tableau1[Nat],Statistique!R$2)","v":0},{"$f":"COUNTIFS(Tableau1[Date Arrivée],Statistique!$B18,Tableau1[Nat],Statistique!S$2)","v":0},{"$f":"COUNTIFS(Tableau1[Date Arrivée],Statistique!$B18,Tableau1[Nat],Statistique!T$2)","v":0},{"$f":"COUNTIFS(Tableau1[Date Arrivée],Statistique!$B18,Tableau1[Nat],Statistique!U$2)","v":0},{"$f":"COUNTIFS(Tableau1[Date Arrivée],Statistique!$B18,Tableau1[Nat],Statistique!V$2)","v":0},{"$f":"COUNTIFS(Tableau1[Date Arrivée],Statistique!$B18,Tableau1[Nat],Statistique!W$2)","v":0},{"$f":"COUNTIFS(Tableau1[Date Arrivée],Statistique!$B18,Tableau1[Nat],Statistique!X$2)","v":0}]
[null,"2019-05-17",null,null,{"$f":"SUM(F19:X19)","v":0},{"$f":"COUNTIFS(Tableau1[Date Arrivée],Statistique!$B19,Tableau1[Nat],Statistique!F$2)","v":0},{"$f":"COUNTIFS(Tableau1[Date Arrivée],Statistique!$B19,Tableau1[Nat],Statistique!G$2)","v":0},{"$f":"COUNTIFS(Tableau1[Date Arrivée],Statistique!$B19,Tableau1[Nat],Statistique!H$2)","v":0},{"$f":"COUNTIFS(Tableau1[Date Arrivée],Statistique!$B19,Tableau1[Nat],Statistique!I$2)","v":0},{"$f":"COUNTIFS(Tableau1[Date Arrivée],Statistique!$B19,Tableau1[Nat],Statistique!J$2)","v":0},{"$f":"COUNTIFS(Tableau1[Date Arrivée],Statistique!$B19,Tableau1[Nat],Statistique!K$2)","v":0},{"$f":"COUNTIFS(Tableau1[Date Arrivée],Statistique!$B19,Tableau1[Nat],Statistique!L$2)","v":0},{"$f":"COUNTIFS(Tableau1[Date Arrivée],Statistique!$B19,Tableau1[Nat],Statistique!M$2)","v":0},{"$f":"COUNTIFS(Tableau1[Date Arrivée],Statistique!$B19,Tableau1[Nat],Statistique!N$2)","v":0},{"$f":"COUNTIFS(Tableau1[Date Arrivée],Statistique!$B19,Tableau1[Nat],Statistique!O$2)","v":0},{"$f":"COUNTIFS(Tableau1[Date Arrivée],Statistique!$B19,Tableau1[Nat],Statistique!P$2)","v":0},{"$f":"COUNTIFS(Tableau1[Date Arrivée],Statistique!$B19,Tableau1[Nat],Statistique!Q$2)","v":0},{"$f":"COUNTIFS(Tableau1[Date Arrivée],Statistique!$B19,Tableau1[Nat],Statistique!R$2)","v":0},{"$f":"COUNTIFS(Tableau1[Date Arrivée],Statistique!$B19,Tableau1[Nat],Statistique!S$2)","v":0},{"$f":"COUNTIFS(Tableau1[Date Arrivée],Statistique!$B19,Tableau1[Nat],Statistique!T$2)","v":0},{"$f":"COUNTIFS(Tableau1[Date Arrivée],Statistique!$B19,Tableau1[Nat],Statistique!U$2)","v":0},{"$f":"COUNTIFS(Tableau1[Date Arrivée],Statistique!$B19,Tableau1[Nat],Statistique!V$2)","v":0},{"$f":"COUNTIFS(Tableau1[Date Arrivée],Statistique!$B19,Tableau1[Nat],Statistique!W$2)","v":0},{"$f":"COUNTIFS(Tableau1[Date Arrivée],Statistique!$B19,Tableau1[Nat],Statistique!X$2)","v":0}]
[null,"2019-05-18",null,null,{"$f":"SUM(F20:X20)","v":0},{"$f":"COUNTIFS(Tableau1[Date Arrivée],Statistique!$B20,Tableau1[Nat],Statistique!F$2)","v":0},{"$f":"COUNTIFS(Tableau1[Date Arrivée],Statistique!$B20,Tableau1[Nat],Statistique!G$2)","v":0},{"$f":"COUNTIFS(Tableau1[Date Arrivée],Statistique!$B20,Tableau1[Nat],Statistique!H$2)","v":0},{"$f":"COUNTIFS(Tableau1[Date Arrivée],Statistique!$B20,Tableau1[Nat],Statistique!I$2)","v":0},{"$f":"COUNTIFS(Tableau1[Date Arrivée],Statistique!$B20,Tableau1[Nat],Statistique!J$2)","v":0},{"$f":"COUNTIFS(Tableau1[Date Arrivée],Statistique!$B20,Tableau1[Nat],Statistique!K$2)","v":0},{"$f":"COUNTIFS(Tableau1[Date Arrivée],Statistique!$B20,Tableau1[Nat],Statistique!L$2)","v":0},{"$f":"COUNTIFS(Tableau1[Date Arrivée],Statistique!$B20,Tableau1[Nat],Statistique!M$2)","v":0},{"$f":"COUNTIFS(Tableau1[Date Arrivée],Statistique!$B20,Tableau1[Nat],Statistique!N$2)","v":0},{"$f":"COUNTIFS(Tableau1[Date Arrivée],Statistique!$B20,Tableau1[Nat],Statistique!O$2)","v":0},{"$f":"COUNTIFS(Tableau1[Date Arrivée],Statistique!$B20,Tableau1[Nat],Statistique!P$2)","v":0},{"$f":"COUNTIFS(Tableau1[Date Arrivée],Statistique!$B20,Tableau1[Nat],Statistique!Q$2)","v":0},{"$f":"COUNTIFS(Tableau1[Date Arrivée],Statistique!$B20,Tableau1[Nat],Statistique!R$2)","v":0},{"$f":"COUNTIFS(Tableau1[Date Arrivée],Statistique!$B20,Tableau1[Nat],Statistique!S$2)","v":0},{"$f":"COUNTIFS(Tableau1[Date Arrivée],Statistique!$B20,Tableau1[Nat],Statistique!T$2)","v":0},{"$f":"COUNTIFS(Tableau1[Date Arrivée],Statistique!$B20,Tableau1[Nat],Statistique!U$2)","v":0},{"$f":"COUNTIFS(Tableau1[Date Arrivée],Statistique!$B20,Tableau1[Nat],Statistique!V$2)","v":0},{"$f":"COUNTIFS(Tableau1[Date Arrivée],Statistique!$B20,Tableau1[Nat],Statistique!W$2)","v":0},{"$f":"COUNTIFS(Tableau1[Date Arrivée],Statistique!$B20,Tableau1[Nat],Statistique!X$2)","v":0}]
[null,"2019-05-19",null,null,{"$f":"SUM(F21:X21)","v":0},{"$f":"COUNTIFS(Tableau1[Date Arrivée],Statistique!$B21,Tableau1[Nat],Statistique!F$2)","v":0},{"$f":"COUNTIFS(Tableau1[Date Arrivée],Statistique!$B21,Tableau1[Nat],Statistique!G$2)","v":0},{"$f":"COUNTIFS(Tableau1[Date Arrivée],Statistique!$B21,Tableau1[Nat],Statistique!H$2)","v":0},{"$f":"COUNTIFS(Tableau1[Date Arrivée],Statistique!$B21,Tableau1[Nat],Statistique!I$2)","v":0},{"$f":"COUNTIFS(Tableau1[Date Arrivée],Statistique!$B21,Tableau1[Nat],Statistique!J$2)","v":0},{"$f":"COUNTIFS(Tableau1[Date Arrivée],Statistique!$B21,Tableau1[Nat],Statistique!K$2)","v":0},{"$f":"COUNTIFS(Tableau1[Date Arrivée],Statistique!$B21,Tableau1[Nat],Statistique!L$2)","v":0},{"$f":"COUNTIFS(Tableau1[Date Arrivée],Statistique!$B21,Tableau1[Nat],Statistique!M$2)","v":0},{"$f":"COUNTIFS(Tableau1[Date Arrivée],Statistique!$B21,Tableau1[Nat],Statistique!N$2)","v":0},{"$f":"COUNTIFS(Tableau1[Date Arrivée],Statistique!$B21,Tableau1[Nat],Statistique!O$2)","v":0},{"$f":"COUNTIFS(Tableau1[Date Arrivée],Statistique!$B21,Tableau1[Nat],Statistique!P$2)","v":0},{"$f":"COUNTIFS(Tableau1[Date Arrivée],Statistique!$B21,Tableau1[Nat],Statistique!Q$2)","v":0},{"$f":"COUNTIFS(Tableau1[Date Arrivée],Statistique!$B21,Tableau1[Nat],Statistique!R$2)","v":0},{"$f":"COUNTIFS(Tableau1[Date Arrivée],Statistique!$B21,Tableau1[Nat],Statistique!S$2)","v":0},{"$f":"COUNTIFS(Tableau1[Date Arrivée],Statistique!$B21,Tableau1[Nat],Statistique!T$2)","v":0},{"$f":"COUNTIFS(Tableau1[Date Arrivée],Statistique!$B21,Tableau1[Nat],Statistique!U$2)","v":0},{"$f":"COUNTIFS(Tableau1[Date Arrivée],Statistique!$B21,Tableau1[Nat],Statistique!V$2)","v":0},{"$f":"COUNTIFS(Tableau1[Date Arrivée],Statistique!$B21,Tableau1[Nat],Statistique!W$2)","v":0},{"$f":"COUNTIFS(Tableau1[Date Arrivée],Statistique!$B21,Tableau1[Nat],Statistique!X$2)","v":0}]
[null,"2019-05-20",null,null,{"$f":"SUM(F22:X22)","v":0},{"$f":"COUNTIFS(Tableau1[Date Arrivée],Statistique!$B22,Tableau1[Nat],Statistique!F$2)","v":0},{"$f":"COUNTIFS(Tableau1[Date Arrivée],Statistique!$B22,Tableau1[Nat],Statistique!G$2)","v":0},{"$f":"COUNTIFS(Tableau1[Date Arrivée],Statistique!$B22,Tableau1[Nat],Statistique!H$2)","v":0},{"$f":"COUNTIFS(Tableau1[Date Arrivée],Statistique!$B22,Tableau1[Nat],Statistique!I$2)","v":0},{"$f":"COUNTIFS(Tableau1[Date Arrivée],Statistique!$B22,Tableau1[Nat],Statistique!J$2)","v":0},{"$f":"COUNTIFS(Tableau1[Date Arrivée],Statistique!$B22,Tableau1[Nat],Statistique!K$2)","v":0},{"$f":"COUNTIFS(Tableau1[Date Arrivée],Statistique!$B22,Tableau1[Nat],Statistique!L$2)","v":0},{"$f":"COUNTIFS(Tableau1[Date Arrivée],Statistique!$B22,Tableau1[Nat],Statistique!M$2)","v":0},{"$f":"COUNTIFS(Tableau1[Date Arrivée],Statistique!$B22,Tableau1[Nat],Statistique!N$2)","v":0},{"$f":"COUNTIFS(Tableau1[Date Arrivée],Statistique!$B22,Tableau1[Nat],Statistique!O$2)","v":0},{"$f":"COUNTIFS(Tableau1[Date Arrivée],Statistique!$B22,Tableau1[Nat],Statistique!P$2)","v":0},{"$f":"COUNTIFS(Tableau1[Date Arrivée],Statistique!$B22,Tableau1[Nat],Statistique!Q$2)","v":0},{"$f":"COUNTIFS(Tableau1[Date Arrivée],Statistique!$B22,Tableau1[Nat],Statistique!R$2)","v":0},{"$f":"COUNTIFS(Tableau1[Date Arrivée],Statistique!$B22,Tableau1[Nat],Statistique!S$2)","v":0},{"$f":"COUNTIFS(Tableau1[Date Arrivée],Statistique!$B22,Tableau1[Nat],Statistique!T$2)","v":0},{"$f":"COUNTIFS(Tableau1[Date Arrivée],Statistique!$B22,Tableau1[Nat],Statistique!U$2)","v":0},{"$f":"COUNTIFS(Tableau1[Date Arrivée],Statistique!$B22,Tableau1[Nat],Statistique!V$2)","v":0},{"$f":"COUNTIFS(Tableau1[Date Arrivée],Statistique!$B22,Tableau1[Nat],Statistique!W$2)","v":0},{"$f":"COUNTIFS(Tableau1[Date Arrivée],Statistique!$B22,Tableau1[Nat],Statistique!X$2)","v":0}]
[null,"2019-05-21",null,null,{"$f":"SUM(F23:X23)","v":0},{"$f":"COUNTIFS(Tableau1[Date Arrivée],Statistique!$B23,Tableau1[Nat],Statistique!F$2)","v":0},{"$f":"COUNTIFS(Tableau1[Date Arrivée],Statistique!$B23,Tableau1[Nat],Statistique!G$2)","v":0},{"$f":"COUNTIFS(Tableau1[Date Arrivée],Statistique!$B23,Tableau1[Nat],Statistique!H$2)","v":0},{"$f":"COUNTIFS(Tableau1[Date Arrivée],Statistique!$B23,Tableau1[Nat],Statistique!I$2)","v":0},{"$f":"COUNTIFS(Tableau1[Date Arrivée],Statistique!$B23,Tableau1[Nat],Statistique!J$2)","v":0},{"$f":"COUNTIFS(Tableau1[Date Arrivée],Statistique!$B23,Tableau1[Nat],Statistique!K$2)","v":0},{"$f":"COUNTIFS(Tableau1[Date Arrivée],Statistique!$B23,Tableau1[Nat],Statistique!L$2)","v":0},{"$f":"COUNTIFS(Tableau1[Date Arrivée],Statistique!$B23,Tableau1[Nat],Statistique!M$2)","v":0},{"$f":"COUNTIFS(Tableau1[Date Arrivée],Statistique!$B23,Tableau1[Nat],Statistique!N$2)","v":0},{"$f":"COUNTIFS(Tableau1[Date Arrivée],Statistique!$B23,Tableau1[Nat],Statistique!O$2)","v":0},{"$f":"COUNTIFS(Tableau1[Date Arrivée],Statistique!$B23,Tableau1[Nat],Statistique!P$2)","v":0},{"$f":"COUNTIFS(Tableau1[Date Arrivée],Statistique!$B23,Tableau1[Nat],Statistique!Q$2)","v":0},{"$f":"COUNTIFS(Tableau1[Date Arrivée],Statistique!$B23,Tableau1[Nat],Statistique!R$2)","v":0},{"$f":"COUNTIFS(Tableau1[Date Arrivée],Statistique!$B23,Tableau1[Nat],Statistique!S$2)","v":0},{"$f":"COUNTIFS(Tableau1[Date Arrivée],Statistique!$B23,Tableau1[Nat],Statistique!T$2)","v":0},{"$f":"COUNTIFS(Tableau1[Date Arrivée],Statistique!$B23,Tableau1[Nat],Statistique!U$2)","v":0},{"$f":"COUNTIFS(Tableau1[Date Arrivée],Statistique!$B23,Tableau1[Nat],Statistique!V$2)","v":0},{"$f":"COUNTIFS(Tableau1[Date Arrivée],Statistique!$B23,Tableau1[Nat],Statistique!W$2)","v":0},{"$f":"COUNTIFS(Tableau1[Date Arrivée],Statistique!$B23,Tableau1[Nat],Statistique!X$2)","v":0}]
[null,"2019-05-22",null,null,{"$f":"SUM(F24:X24)","v":0},{"$f":"COUNTIFS(Tableau1[Date Arrivée],Statistique!$B24,Tableau1[Nat],Statistique!F$2)","v":0},{"$f":"COUNTIFS(Tableau1[Date Arrivée],Statistique!$B24,Tableau1[Nat],Statistique!G$2)","v":0},{"$f":"COUNTIFS(Tableau1[Date Arrivée],Statistique!$B24,Tableau1[Nat],Statistique!H$2)","v":0},{"$f":"COUNTIFS(Tableau1[Date Arrivée],Statistique!$B24,Tableau1[Nat],Statistique!I$2)","v":0},{"$f":"COUNTIFS(Tableau1[Date Arrivée],Statistique!$B24,Tableau1[Nat],Statistique!J$2)","v":0},{"$f":"COUNTIFS(Tableau1[Date Arrivée],Statistique!$B24,Tableau1[Nat],Statistique!K$2)","v":0},{"$f":"COUNTIFS(Tableau1[Date Arrivée],Statistique!$B24,Tableau1[Nat],Statistique!L$2)","v":0},{"$f":"COUNTIFS(Tableau1[Date Arrivée],Statistique!$B24,Tableau1[Nat],Statistique!M$2)","v":0},{"$f":"COUNTIFS(Tableau1[Date Arrivée],Statistique!$B24,Tableau1[Nat],Statistique!N$2)","v":0},{"$f":"COUNTIFS(Tableau1[Date Arrivée],Statistique!$B24,Tableau1[Nat],Statistique!O$2)","v":0},{"$f":"COUNTIFS(Tableau1[Date Arrivée],Statistique!$B24,Tableau1[Nat],Statistique!P$2)","v":0},{"$f":"COUNTIFS(Tableau1[Date Arrivée],Statistique!$B24,Tableau1[Nat],Statistique!Q$2)","v":0},{"$f":"COUNTIFS(Tableau1[Date Arrivée],Statistique!$B24,Tableau1[Nat],Statistique!R$2)","v":0},{"$f":"COUNTIFS(Tableau1[Date Arrivée],Statistique!$B24,Tableau1[Nat],Statistique!S$2)","v":0},{"$f":"COUNTIFS(Tableau1[Date Arrivée],Statistique!$B24,Tableau1[Nat],Statistique!T$2)","v":0},{"$f":"COUNTIFS(Tableau1[Date Arrivée],Statistique!$B24,Tableau1[Nat],Statistique!U$2)","v":0},{"$f":"COUNTIFS(Tableau1[Date Arrivée],Statistique!$B24,Tableau1[Nat],Statistique!V$2)","v":0},{"$f":"COUNTIFS(Tableau1[Date Arrivée],Statistique!$B24,Tableau1[Nat],Statistique!W$2)","v":0},{"$f":"COUNTIFS(Tableau1[Date Arrivée],Statistique!$B24,Tableau1[Nat],Statistique!X$2)","v":0}]
[null,"2019-05-23",null,null,{"$f":"SUM(F25:X25)","v":0},{"$f":"COUNTIFS(Tableau1[Date Arrivée],Statistique!$B25,Tableau1[Nat],Statistique!F$2)","v":0},{"$f":"COUNTIFS(Tableau1[Date Arrivée],Statistique!$B25,Tableau1[Nat],Statistique!G$2)","v":0},{"$f":"COUNTIFS(Tableau1[Date Arrivée],Statistique!$B25,Tableau1[Nat],Statistique!H$2)","v":0},{"$f":"COUNTIFS(Tableau1[Date Arrivée],Statistique!$B25,Tableau1[Nat],Statistique!I$2)","v":0},{"$f":"COUNTIFS(Tableau1[Date Arrivée],Statistique!$B25,Tableau1[Nat],Statistique!J$2)","v":0},{"$f":"COUNTIFS(Tableau1[Date Arrivée],Statistique!$B25,Tableau1[Nat],Statistique!K$2)","v":0},{"$f":"COUNTIFS(Tableau1[Date Arrivée],Statistique!$B25,Tableau1[Nat],Statistique!L$2)","v":0},{"$f":"COUNTIFS(Tableau1[Date Arrivée],Statistique!$B25,Tableau1[Nat],Statistique!M$2)","v":0},{"$f":"COUNTIFS(Tableau1[Date Arrivée],Statistique!$B25,Tableau1[Nat],Statistique!N$2)","v":0},{"$f":"COUNTIFS(Tableau1[Date Arrivée],Statistique!$B25,Tableau1[Nat],Statistique!O$2)","v":0},{"$f":"COUNTIFS(Tableau1[Date Arrivée],Statistique!$B25,Tableau1[Nat],Statistique!P$2)","v":0},{"$f":"COUNTIFS(Tableau1[Date Arrivée],Statistique!$B25,Tableau1[Nat],Statistique!Q$2)","v":0},{"$f":"COUNTIFS(Tableau1[Date Arrivée],Statistique!$B25,Tableau1[Nat],Statistique!R$2)","v":0},{"$f":"COUNTIFS(Tableau1[Date Arrivée],Statistique!$B25,Tableau1[Nat],Statistique!S$2)","v":0},{"$f":"COUNTIFS(Tableau1[Date Arrivée],Statistique!$B25,Tableau1[Nat],Statistique!T$2)","v":0},{"$f":"COUNTIFS(Tableau1[Date Arrivée],Statistique!$B25,Tableau1[Nat],Statistique!U$2)","v":0},{"$f":"COUNTIFS(Tableau1[Date Arrivée],Statistique!$B25,Tableau1[Nat],Statistique!V$2)","v":0},{"$f":"COUNTIFS(Tableau1[Date Arrivée],Statistique!$B25,Tableau1[Nat],Statistique!W$2)","v":0},{"$f":"COUNTIFS(Tableau1[Date Arrivée],Statistique!$B25,Tableau1[Nat],Statistique!X$2)","v":0}]
[null,"2019-05-24",null,null,{"$f":"SUM(F26:X26)","v":0},{"$f":"COUNTIFS(Tableau1[Date Arrivée],Statistique!$B26,Tableau1[Nat],Statistique!F$2)","v":0},{"$f":"COUNTIFS(Tableau1[Date Arrivée],Statistique!$B26,Tableau1[Nat],Statistique!G$2)","v":0},{"$f":"COUNTIFS(Tableau1[Date Arrivée],Statistique!$B26,Tableau1[Nat],Statistique!H$2)","v":0},{"$f":"COUNTIFS(Tableau1[Date Arrivée],Statistique!$B26,Tableau1[Nat],Statistique!I$2)","v":0},{"$f":"COUNTIFS(Tableau1[Date Arrivée],Statistique!$B26,Tableau1[Nat],Statistique!J$2)","v":0},{"$f":"COUNTIFS(Tableau1[Date Arrivée],Statistique!$B26,Tableau1[Nat],Statistique!K$2)","v":0},{"$f":"COUNTIFS(Tableau1[Date Arrivée],Statistique!$B26,Tableau1[Nat],Statistique!L$2)","v":0},{"$f":"COUNTIFS(Tableau1[Date Arrivée],Statistique!$B26,Tableau1[Nat],Statistique!M$2)","v":0},{"$f":"COUNTIFS(Tableau1[Date Arrivée],Statistique!$B26,Tableau1[Nat],Statistique!N$2)","v":0},{"$f":"COUNTIFS(Tableau1[Date Arrivée],Statistique!$B26,Tableau1[Nat],Statistique!O$2)","v":0},{"$f":"COUNTIFS(Tableau1[Date Arrivée],Statistique!$B26,Tableau1[Nat],Statistique!P$2)","v":0},{"$f":"COUNTIFS(Tableau1[Date Arrivée],Statistique!$B26,Tableau1[Nat],Statistique!Q$2)","v":0},{"$f":"COUNTIFS(Tableau1[Date Arrivée],Statistique!$B26,Tableau1[Nat],Statistique!R$2)","v":0},{"$f":"COUNTIFS(Tableau1[Date Arrivée],Statistique!$B26,Tableau1[Nat],Statistique!S$2)","v":0},{"$f":"COUNTIFS(Tableau1[Date Arrivée],Statistique!$B26,Tableau1[Nat],Statistique!T$2)","v":0},{"$f":"COUNTIFS(Tableau1[Date Arrivée],Statistique!$B26,Tableau1[Nat],Statistique!U$2)","v":0},{"$f":"COUNTIFS(Tableau1[Date Arrivée],Statistique!$B26,Tableau1[Nat],Statistique!V$2)","v":0},{"$f":"COUNTIFS(Tableau1[Date Arrivée],Statistique!$B26,Tableau1[Nat],Statistique!W$2)","v":0},{"$f":"COUNTIFS(Tableau1[Date Arrivée],Statistique!$B26,Tableau1[Nat],Statistique!X$2)","v":0}]
[null,"2019-05-25",null,null,{"$f":"SUM(F27:X27)","v":0},{"$f":"COUNTIFS(Tableau1[Date Arrivée],Statistique!$B27,Tableau1[Nat],Statistique!F$2)","v":0},{"$f":"COUNTIFS(Tableau1[Date Arrivée],Statistique!$B27,Tableau1[Nat],Statistique!G$2)","v":0},{"$f":"COUNTIFS(Tableau1[Date Arrivée],Statistique!$B27,Tableau1[Nat],Statistique!H$2)","v":0},{"$f":"COUNTIFS(Tableau1[Date Arrivée],Statistique!$B27,Tableau1[Nat],Statistique!I$2)","v":0},{"$f":"COUNTIFS(Tableau1[Date Arrivée],Statistique!$B27,Tableau1[Nat],Statistique!J$2)","v":0},{"$f":"COUNTIFS(Tableau1[Date Arrivée],Statistique!$B27,Tableau1[Nat],Statistique!K$2)","v":0},{"$f":"COUNTIFS(Tableau1[Date Arrivée],Statistique!$B27,Tableau1[Nat],Statistique!L$2)","v":0},{"$f":"COUNTIFS(Tableau1[Date Arrivée],Statistique!$B27,Tableau1[Nat],Statistique!M$2)","v":0},{"$f":"COUNTIFS(Tableau1[Date Arrivée],Statistique!$B27,Tableau1[Nat],Statistique!N$2)","v":0},{"$f":"COUNTIFS(Tableau1[Date Arrivée],Statistique!$B27,Tableau1[Nat],Statistique!O$2)","v":0},{"$f":"COUNTIFS(Tableau1[Date Arrivée],Statistique!$B27,Tableau1[Nat],Statistique!P$2)","v":0},{"$f":"COUNTIFS(Tableau1[Date Arrivée],Statistique!$B27,Tableau1[Nat],Statistique!Q$2)","v":0},{"$f":"COUNTIFS(Tableau1[Date Arrivée],Statistique!$B27,Tableau1[Nat],Statistique!R$2)","v":0},{"$f":"COUNTIFS(Tableau1[Date Arrivée],Statistique!$B27,Tableau1[Nat],Statistique!S$2)","v":0},{"$f":"COUNTIFS(Tableau1[Date Arrivée],Statistique!$B27,Tableau1[Nat],Statistique!T$2)","v":0},{"$f":"COUNTIFS(Tableau1[Date Arrivée],Statistique!$B27,Tableau1[Nat],Statistique!U$2)","v":0},{"$f":"COUNTIFS(Tableau1[Date Arrivée],Statistique!$B27,Tableau1[Nat],Statistique!V$2)","v":0},{"$f":"COUNTIFS(Tableau1[Date Arrivée],Statistique!$B27,Tableau1[Nat],Statistique!W$2)","v":0},{"$f":"COUNTIFS(Tableau1[Date Arrivée],Statistique!$B27,Tableau1[Nat],Statistique!X$2)","v":0}]
[null,"2019-05-26",null,null,{"$f":"SUM(F28:X28)","v":0},{"$f":"COUNTIFS(Tableau1[Date Arrivée],Statistique!$B28,Tableau1[Nat],Statistique!F$2)","v":0},{"$f":"COUNTIFS(Tableau1[Date Arrivée],Statistique!$B28,Tableau1[Nat],Statistique!G$2)","v":0},{"$f":"COUNTIFS(Tableau1[Date Arrivée],Statistique!$B28,Tableau1[Nat],Statistique!H$2)","v":0},{"$f":"COUNTIFS(Tableau1[Date Arrivée],Statistique!$B28,Tableau1[Nat],Statistique!I$2)","v":0},{"$f":"COUNTIFS(Tableau1[Date Arrivée],Statistique!$B28,Tableau1[Nat],Statistique!J$2)","v":0},{"$f":"COUNTIFS(Tableau1[Date Arrivée],Statistique!$B28,Tableau1[Nat],Statistique!K$2)","v":0},{"$f":"COUNTIFS(Tableau1[Date Arrivée],Statistique!$B28,Tableau1[Nat],Statistique!L$2)","v":0},{"$f":"COUNTIFS(Tableau1[Date Arrivée],Statistique!$B28,Tableau1[Nat],Statistique!M$2)","v":0},{"$f":"COUNTIFS(Tableau1[Date Arrivée],Statistique!$B28,Tableau1[Nat],Statistique!N$2)","v":0},{"$f":"COUNTIFS(Tableau1[Date Arrivée],Statistique!$B28,Tableau1[Nat],Statistique!O$2)","v":0},{"$f":"COUNTIFS(Tableau1[Date Arrivée],Statistique!$B28,Tableau1[Nat],Statistique!P$2)","v":0},{"$f":"COUNTIFS(Tableau1[Date Arrivée],Statistique!$B28,Tableau1[Nat],Statistique!Q$2)","v":0},{"$f":"COUNTIFS(Tableau1[Date Arrivée],Statistique!$B28,Tableau1[Nat],Statistique!R$2)","v":0},{"$f":"COUNTIFS(Tableau1[Date Arrivée],Statistique!$B28,Tableau1[Nat],Statistique!S$2)","v":0},{"$f":"COUNTIFS(Tableau1[Date Arrivée],Statistique!$B28,Tableau1[Nat],Statistique!T$2)","v":0},{"$f":"COUNTIFS(Tableau1[Date Arrivée],Statistique!$B28,Tableau1[Nat],Statistique!U$2)","v":0},{"$f":"COUNTIFS(Tableau1[Date Arrivée],Statistique!$B28,Tableau1[Nat],Statistique!V$2)","v":0},{"$f":"COUNTIFS(Tableau1[Date Arrivée],Statistique!$B28,Tableau1[Nat],Statistique!W$2)","v":0},{"$f":"COUNTIFS(Tableau1[Date Arrivée],Statistique!$B28,Tableau1[Nat],Statistique!X$2)","v":0}]
[null,"2019-05-27",null,null,{"$f":"SUM(F29:X29)","v":0},{"$f":"COUNTIFS(Tableau1[Date Arrivée],Statistique!$B29,Tableau1[Nat],Statistique!F$2)","v":0},{"$f":"COUNTIFS(Tableau1[Date Arrivée],Statistique!$B29,Tableau1[Nat],Statistique!G$2)","v":0},{"$f":"COUNTIFS(Tableau1[Date Arrivée],Statistique!$B29,Tableau1[Nat],Statistique!H$2)","v":0},{"$f":"COUNTIFS(Tableau1[Date Arrivée],Statistique!$B29,Tableau1[Nat],Statistique!I$2)","v":0},{"$f":"COUNTIFS(Tableau1[Date Arrivée],Statistique!$B29,Tableau1[Nat],Statistique!J$2)","v":0},{"$f":"COUNTIFS(Tableau1[Date Arrivée],Statistique!$B29,Tableau1[Nat],Statistique!K$2)","v":0},{"$f":"COUNTIFS(Tableau1[Date Arrivée],Statistique!$B29,Tableau1[Nat],Statistique!L$2)","v":0},{"$f":"COUNTIFS(Tableau1[Date Arrivée],Statistique!$B29,Tableau1[Nat],Statistique!M$2)","v":0},{"$f":"COUNTIFS(Tableau1[Date Arrivée],Statistique!$B29,Tableau1[Nat],Statistique!N$2)","v":0},{"$f":"COUNTIFS(Tableau1[Date Arrivée],Statistique!$B29,Tableau1[Nat],Statistique!O$2)","v":0},{"$f":"COUNTIFS(Tableau1[Date Arrivée],Statistique!$B29,Tableau1[Nat],Statistique!P$2)","v":0},{"$f":"COUNTIFS(Tableau1[Date Arrivée],Statistique!$B29,Tableau1[Nat],Statistique!Q$2)","v":0},{"$f":"COUNTIFS(Tableau1[Date Arrivée],Statistique!$B29,Tableau1[Nat],Statistique!R$2)","v":0},{"$f":"COUNTIFS(Tableau1[Date Arrivée],Statistique!$B29,Tableau1[Nat],Statistique!S$2)","v":0},{"$f":"COUNTIFS(Tableau1[Date Arrivée],Statistique!$B29,Tableau1[Nat],Statistique!T$2)","v":0},{"$f":"COUNTIFS(Tableau1[Date Arrivée],Statistique!$B29,Tableau1[Nat],Statistique!U$2)","v":0},{"$f":"COUNTIFS(Tableau1[Date Arrivée],Statistique!$B29,Tableau1[Nat],Statistique!V$2)","v":0},{"$f":"COUNTIFS(Tableau1[Date Arrivée],Statistique!$B29,Tableau1[Nat],Statistique!W$2)","v":0},{"$f":"COUNTIFS(Tableau1[Date Arrivée],Statistique!$B29,Tableau1[Nat],Statistique!X$2)","v":0}]
[null,"2019-05-28",null,null,{"$f":"SUM(F30:X30)","v":0},{"$f":"COUNTIFS(Tableau1[Date Arrivée],Statistique!$B30,Tableau1[Nat],Statistique!F$2)","v":0},{"$f":"COUNTIFS(Tableau1[Date Arrivée],Statistique!$B30,Tableau1[Nat],Statistique!G$2)","v":0},{"$f":"COUNTIFS(Tableau1[Date Arrivée],Statistique!$B30,Tableau1[Nat],Statistique!H$2)","v":0},{"$f":"COUNTIFS(Tableau1[Date Arrivée],Statistique!$B30,Tableau1[Nat],Statistique!I$2)","v":0},{"$f":"COUNTIFS(Tableau1[Date Arrivée],Statistique!$B30,Tableau1[Nat],Statistique!J$2)","v":0},{"$f":"COUNTIFS(Tableau1[Date Arrivée],Statistique!$B30,Tableau1[Nat],Statistique!K$2)","v":0},{"$f":"COUNTIFS(Tableau1[Date Arrivée],Statistique!$B30,Tableau1[Nat],Statistique!L$2)","v":0},{"$f":"COUNTIFS(Tableau1[Date Arrivée],Statistique!$B30,Tableau1[Nat],Statistique!M$2)","v":0},{"$f":"COUNTIFS(Tableau1[Date Arrivée],Statistique!$B30,Tableau1[Nat],Statistique!N$2)","v":0},{"$f":"COUNTIFS(Tableau1[Date Arrivée],Statistique!$B30,Tableau1[Nat],Statistique!O$2)","v":0},{"$f":"COUNTIFS(Tableau1[Date Arrivée],Statistique!$B30,Tableau1[Nat],Statistique!P$2)","v":0},{"$f":"COUNTIFS(Tableau1[Date Arrivée],Statistique!$B30,Tableau1[Nat],Statistique!Q$2)","v":0},{"$f":"COUNTIFS(Tableau1[Date Arrivée],Statistique!$B30,Tableau1[Nat],Statistique!R$2)","v":0},{"$f":"COUNTIFS(Tableau1[Date Arrivée],Statistique!$B30,Tableau1[Nat],Statistique!S$2)","v":0},{"$f":"COUNTIFS(Tableau1[Date Arrivée],Statistique!$B30,Tableau1[Nat],Statistique!T$2)","v":0},{"$f":"COUNTIFS(Tableau1[Date Arrivée],Statistique!$B30,Tableau1[Nat],Statistique!U$2)","v":0},{"$f":"COUNTIFS(Tableau1[Date Arrivée],Statistique!$B30,Tableau1[Nat],Statistique!V$2)","v":0},{"$f":"COUNTIFS(Tableau1[Date Arrivée],Statistique!$B30,Tableau1[Nat],Statistique!W$2)","v":0},{"$f":"COUNTIFS(Tableau1[Date Arrivée],Statistique!$B30,Tableau1[Nat],Statistique!X$2)","v":0}]
[null,{"$f":"B30+1","v":"2019-05-29"},null,null,{"$f":"SUM(F31:X31)","v":0},{"$f":"COUNTIFS(Tableau1[Date Arrivée],Statistique!$B31,Tableau1[Nat],Statistique!F$2)","v":0},{"$f":"COUNTIFS(Tableau1[Date Arrivée],Statistique!$B31,Tableau1[Nat],Statistique!G$2)","v":0},{"$f":"COUNTIFS(Tableau1[Date Arrivée],Statistique!$B31,Tableau1[Nat],Statistique!H$2)","v":0},{"$f":"COUNTIFS(Tableau1[Date Arrivée],Statistique!$B31,Tableau1[Nat],Statistique!I$2)","v":0},{"$f":"COUNTIFS(Tableau1[Date Arrivée],Statistique!$B31,Tableau1[Nat],Statistique!J$2)","v":0},{"$f":"COUNTIFS(Tableau1[Date Arrivée],Statistique!$B31,Tableau1[Nat],Statistique!K$2)","v":0},{"$f":"COUNTIFS(Tableau1[Date Arrivée],Statistique!$B31,Tableau1[Nat],Statistique!L$2)","v":0},{"$f":"COUNTIFS(Tableau1[Date Arrivée],Statistique!$B31,Tableau1[Nat],Statistique!M$2)","v":0},{"$f":"COUNTIFS(Tableau1[Date Arrivée],Statistique!$B31,Tableau1[Nat],Statistique!N$2)","v":0},{"$f":"COUNTIFS(Tableau1[Date Arrivée],Statistique!$B31,Tableau1[Nat],Statistique!O$2)","v":0},{"$f":"COUNTIFS(Tableau1[Date Arrivée],Statistique!$B31,Tableau1[Nat],Statistique!P$2)","v":0},{"$f":"COUNTIFS(Tableau1[Date Arrivée],Statistique!$B31,Tableau1[Nat],Statistique!Q$2)","v":0},{"$f":"COUNTIFS(Tableau1[Date Arrivée],Statistique!$B31,Tableau1[Nat],Statistique!R$2)","v":0},{"$f":"COUNTIFS(Tableau1[Date Arrivée],Statistique!$B31,Tableau1[Nat],Statistique!S$2)","v":0},{"$f":"COUNTIFS(Tableau1[Date Arrivée],Statistique!$B31,Tableau1[Nat],Statistique!T$2)","v":0},{"$f":"COUNTIFS(Tableau1[Date Arrivée],Statistique!$B31,Tableau1[Nat],Statistique!U$2)","v":0},{"$f":"COUNTIFS(Tableau1[Date Arrivée],Statistique!$B31,Tableau1[Nat],Statistique!V$2)","v":0},{"$f":"COUNTIFS(Tableau1[Date Arrivée],Statistique!$B31,Tableau1[Nat],Statistique!W$2)","v":0},{"$f":"COUNTIFS(Tableau1[Date Arrivée],Statistique!$B31,Tableau1[Nat],Statistique!X$2)","v":0}]
[null,"2019-05-30",null,null,{"$f":"SUM(F32:X32)","v":0},{"$f":"COUNTIFS(Tableau1[Date Arrivée],Statistique!$B32,Tableau1[Nat],Statistique!F$2)","v":0},{"$f":"COUNTIFS(Tableau1[Date Arrivée],Statistique!$B32,Tableau1[Nat],Statistique!G$2)","v":0},{"$f":"COUNTIFS(Tableau1[Date Arrivée],Statistique!$B32,Tableau1[Nat],Statistique!H$2)","v":0},{"$f":"COUNTIFS(Tableau1[Date Arrivée],Statistique!$B32,Tableau1[Nat],Statistique!I$2)","v":0},{"$f":"COUNTIFS(Tableau1[Date Arrivée],Statistique!$B32,Tableau1[Nat],Statistique!J$2)","v":0},{"$f":"COUNTIFS(Tableau1[Date Arrivée],Statistique!$B32,Tableau1[Nat],Statistique!K$2)","v":0},{"$f":"COUNTIFS(Tableau1[Date Arrivée],Statistique!$B32,Tableau1[Nat],Statistique!L$2)","v":0},{"$f":"COUNTIFS(Tableau1[Date Arrivée],Statistique!$B32,Tableau1[Nat],Statistique!M$2)","v":0},{"$f":"COUNTIFS(Tableau1[Date Arrivée],Statistique!$B32,Tableau1[Nat],Statistique!N$2)","v":0},{"$f":"COUNTIFS(Tableau1[Date Arrivée],Statistique!$B32,Tableau1[Nat],Statistique!O$2)","v":0},{"$f":"COUNTIFS(Tableau1[Date Arrivée],Statistique!$B32,Tableau1[Nat],Statistique!P$2)","v":0},{"$f":"COUNTIFS(Tableau1[Date Arrivée],Statistique!$B32,Tableau1[Nat],Statistique!Q$2)","v":0},{"$f":"COUNTIFS(Tableau1[Date Arrivée],Statistique!$B32,Tableau1[Nat],Statistique!R$2)","v":0},{"$f":"COUNTIFS(Tableau1[Date Arrivée],Statistique!$B32,Tableau1[Nat],Statistique!S$2)","v":0},{"$f":"COUNTIFS(Tableau1[Date Arrivée],Statistique!$B32,Tableau1[Nat],Statistique!T$2)","v":0},{"$f":"COUNTIFS(Tableau1[Date Arrivée],Statistique!$B32,Tableau1[Nat],Statistique!U$2)","v":0},{"$f":"COUNTIFS(Tableau1[Date Arrivée],Statistique!$B32,Tableau1[Nat],Statistique!V$2)","v":0},{"$f":"COUNTIFS(Tableau1[Date Arrivée],Statistique!$B32,Tableau1[Nat],Statistique!W$2)","v":0},{"$f":"COUNTIFS(Tableau1[Date Arrivée],Statistique!$B32,Tableau1[Nat],Statistique!X$2)","v":0}]
[null,{"$f":"B32+1","v":"2019-05-31"},null,null,{"$f":"SUM(F33:X33)","v":0},{"$f":"COUNTIFS(Tableau1[Date Arrivée],Statistique!$B33,Tableau1[Nat],Statistique!F$2)","v":0},{"$f":"COUNTIFS(Tableau1[Date Arrivée],Statistique!$B33,Tableau1[Nat],Statistique!G$2)","v":0},{"$f":"COUNTIFS(Tableau1[Date Arrivée],Statistique!$B33,Tableau1[Nat],Statistique!H$2)","v":0},{"$f":"COUNTIFS(Tableau1[Date Arrivée],Statistique!$B33,Tableau1[Nat],Statistique!I$2)","v":0},{"$f":"COUNTIFS(Tableau1[Date Arrivée],Statistique!$B33,Tableau1[Nat],Statistique!J$2)","v":0},{"$f":"COUNTIFS(Tableau1[Date Arrivée],Statistique!$B33,Tableau1[Nat],Statistique!K$2)","v":0},{"$f":"COUNTIFS(Tableau1[Date Arrivée],Statistique!$B33,Tableau1[Nat],Statistique!L$2)","v":0},{"$f":"COUNTIFS(Tableau1[Date Arrivée],Statistique!$B33,Tableau1[Nat],Statistique!M$2)","v":0},{"$f":"COUNTIFS(Tableau1[Date Arrivée],Statistique!$B33,Tableau1[Nat],Statistique!N$2)","v":0},{"$f":"COUNTIFS(Tableau1[Date Arrivée],Statistique!$B33,Tableau1[Nat],Statistique!O$2)","v":0},{"$f":"COUNTIFS(Tableau1[Date Arrivée],Statistique!$B33,Tableau1[Nat],Statistique!P$2)","v":0},{"$f":"COUNTIFS(Tableau1[Date Arrivée],Statistique!$B33,Tableau1[Nat],Statistique!Q$2)","v":0},{"$f":"COUNTIFS(Tableau1[Date Arrivée],Statistique!$B33,Tableau1[Nat],Statistique!R$2)","v":0},{"$f":"COUNTIFS(Tableau1[Date Arrivée],Statistique!$B33,Tableau1[Nat],Statistique!S$2)","v":0},{"$f":"COUNTIFS(Tableau1[Date Arrivée],Statistique!$B33,Tableau1[Nat],Statistique!T$2)","v":0},{"$f":"COUNTIFS(Tableau1[Date Arrivée],Statistique!$B33,Tableau1[Nat],Statistique!U$2)","v":0},{"$f":"COUNTIFS(Tableau1[Date Arrivée],Statistique!$B33,Tableau1[Nat],Statistique!V$2)","v":0},{"$f":"COUNTIFS(Tableau1[Date Arrivée],Statistique!$B33,Tableau1[Nat],Statistique!W$2)","v":0},{"$f":"COUNTIFS(Tableau1[Date Arrivée],Statistique!$B33,Tableau1[Nat],Statistique!X$2)","v":0}]
[null,"Total"]